[Event "Austrian Championship 2022"]
[Site "Vienna"]
[Date "2022.08.12"]
[Round "1.1"]
[White "Blohberger, Felix"]
[Black "Pilshofer, Paul"]
[Result "1-0"]
[ECO "A50"]
[WhiteElo "2492"]
[BlackElo "2223"]
[Annotator "TA"]
[PlyCount "43"]
[EventDate "2022.08.12"]
[EventType "swiss"]
[EventCountry "AUT"]
[SourceTitle "playchess.com"]
[Source "ChessBase"]
[SourceQuality "1"]
[TimeControl "40/5400+30:1800+30"]

{[%evp 12,43,29,25,80,79,82,64,95,72,75,71,81,77,110,87,141,116,155,161,156,144,137,135,147,118,179,160,440,422,444,444,550,539]} 1. Nf3 {[%emt 0:00:04]} Nf6 {[%emt 0:00:15]} 2. g3 {[%emt 0:00:05]} b6 {[%emt 0:00:34]} 3. Bg2 {[%emt 0:00:08]} Bb7 {[%emt 0:00:01]} 4. O-O {[%emt 0:00:22]} g6 {[%emt 0:00:14]} 5. c4 {[%emt 0:04:10]} Bg7 {[%emt 0:00:18]} 6. d4 {[%emt 0:00:27]} O-O {[%emt 0:00:13]} 7. d5 {[%emt 0:00:27] 7.Re1 is a critical line.} c5 {[%emt 0:13:23] A50: Queen's Fianchetto Defence (1 d4 Nf6 2 c4 b6).} (7... Ne4 $11 {keeps the balance.}) 8. Nc3 $16 {[%emt 0:00:10]} d6 {[%emt 0:02:06]} 9. e4 {[%emt 0:00:11] [#]} Ng4 $146 {[%emt 0:09:04] White is slightly better.} ({Predecessor:} 9... Nbd7 10. h3 b5 11. cxb5 a6 12. bxa6 Bxa6 13. Re1 Ne8 14. Bf4 h6 15. Qc2 g5 16. Bd2 Rb8 17. Nd1 e6 {0-1 (71) Idani,P (2569)-Mamedov,R (2680) Abu Dhabi 2017}) 10. h3 {[%emt 0:16:15]} Ne5 {[%emt 0:03:06]} 11. Nxe5 {[%emt 0:01:00]} Bxe5 {[%emt 0:13:40]} 12. Bh6 {[%emt 0:00:30]} Bg7 {[%emt 0:00:30]} 13. Qd2 {[%emt 0:00:30]} Qd7 (13... e5 $142) 14. Rae1 {[%cal Ba1e1,Be1e5,Be5e2][%mdl 32]} Na6 {[%emt 0:25:18]} 15. Bxg7 {[%emt 0:02:24]} Kxg7 {[%emt 0:01:28]} 16. e5 {[%emt 0:01:08]} dxe5 {[%emt 0:10:54]} 17. Rxe5 {[%emt 0:00:45]} Rae8 {[%emt 0:03:08]} 18. Rfe1 {[%emt 0:05:17] White is more active.} f6 {[%emt 0:06:00]} (18... e6 $16 {keeps fighting.}) 19. R5e2 $18 {[%emt 0:00:53]} Nc7 $2 {[%emt 0:00:31] Against Nb5} (19... Bc8 $16 20. Nb5 e5) 20. d6 $1 {[%emt 0:01:20] White is clearly winning.} exd6 {[%emt 0:05:09]} 21. Bxb7 {[%emt 0:00:08]} Ne6 {[%emt 0:00:23] [#]} 22. Bc6 $1 {[%emt 0:00:32][%mdl 512] Weighted Error Value: White=0.11 (very precise) /Black=0.53} 1-0

[Event "Austrian Championship 2022"]
[Site "Vienna"]
[Date "2022.08.12"]
[Round "1.1"]
[White "Lerch, Johannes"]
[Black "Ivanyk, Igor"]
[Result "1/2-1/2"]
[ECO "A14"]
[WhiteElo "2222"]
[BlackElo "2002"]
[Annotator "TA"]
[PlyCount "91"]
[EventDate "2022.08.12"]
[EventType "swiss"]
[EventCountry "AUT"]
[SourceTitle "playchess.com"]
[Source "ChessBase"]
[SourceQuality "1"]
[TimeControl "40/5400+30:1800+30"]

{[%evp 20,91,36,16,20,30,45,38,47,45,37,39,37,37,40,45,45,37,42,36,46,31,61,56,71,76,74,40,37,50,45,3,31,28,26,0,0,0,0,0,0,0,0,0,0,0,19,23,23,19,26,34,81,31,99,28,15,0,0,0,0,0,0,0,0,0,0,0,0,0,0,0,0,0]} 1. Nf3 {[%emt 0:00:03]} Nf6 {[%emt 0:00:08]} 2. c4 {[%emt 0:00:07]} e6 {[%emt 0:00:24]} 3. b3 {[%emt 0:00:10]} d5 {[%emt 0:01:31]} 4. Bb2 {[%emt 0:00:07]} Be7 {[%emt 0:01:01]} 5. g3 {[%emt 0:05:03]} O-O {[%emt 0:04:40]} 6. Bg2 {[%emt 0:00:09]} c5 {[%emt 0:02:12]} 7. cxd5 {[%emt 0:01:39]} Nxd5 {[%emt 0:03:25]} 8. O-O {[%emt 0:01:23]} Nc6 {[%emt 0:01:23]} 9. d4 {[%emt 0:16:22]} cxd4 {[%emt 0:09:20]} 10. Nxd4 {[%emt 0:00:10]} Nxd4 {[%emt 0:12:24]} 11. Qxd4 {[%emt 0:04:37][%csl Gb2][%cal Rd4g7] [#]} Bf6 {[%emt 0:01:30] A14: English Opening: 1...e6 with b3 by White.} 12. Qd2 {[%emt 0:00:05]} Rb8 {[%emt 0:17:26]} 13. Rd1 {[%emt 0:17:19][%cal Rg2d5]} Bxb2 {[%emt 0:05:41] White is slightly better.} 14. Qxb2 {[%emt 0:00:05]} Qf6 {[%emt 0:00:23] Inhibits Nc3.} 15. Qxf6 {[%emt 0:01:20]} Nxf6 {[%emt 0:00:07]} 16. Na3 {[%emt 0:05:01]} b5 {[%emt 0:05:40]} 17. Rac1 {[%emt 0:06:41][%cal Ba1c1,Bc1c7,Bc7c6][%mdl 32]} Bb7 {[%emt 0:04:12]} 18. Rc7 {[%emt 0:01:20]} Bxg2 {[%emt 0:01:48]} 19. Kxg2 {[%emt 0:01:40]} a6 {[%emt 0:00:05]} 20. Rc6 {[%emt 0:01:30]} Nd5 {[%emt 0:02:01]} 21. Rxa6 {[%emt 0:06:10]} Nb4 {[%emt 0:00:47] [#]} 22. Ra5 $146 {[%emt 0:00:53] Black must now prevent Rd2.} ({Predecessor:} 22. Ra7 Nxa2 23. Rc7 Nc3 24. Rdd7 Nxe2 25. b4 e5 26. Rd5 Nd4 27. Rxe5 Rfe8 28. Rxe8+ Rxe8 {1-0 (54) Sadikhov,U (2490)-Megalios,K (2390) Veliko Gradiste 2021}) 22... Nxa2 {[%emt 0:00:39]} 23. Rxb5 {[%emt 0:01:03]} (23. Nb1 $5 {[%cal Ra5a2]} Nb4 24. Nc3 $14) 23... Nc3 {[%emt 0:06:30][%csl LRb5,LRd1,LRe2]} 24. Rxb8 {[%emt 0:00:10]} Rxb8 $14 {[%emt 0:00:03][%mdl 4096] Endgame KRN-KRN} 25. Rd4 {[%emt 0:12:10]} Kf8 {[%emt 0:02:09]} 26. b4 {[%emt 0:08:18]} Ra8 {[%emt 0:01:57]} 27. Nc2 {[%emt 0:00:54]} Ra2 {[%emt 0:01:23]} 28. Ne3 {[%emt 0:00:20]} Rxe2 {[%emt 0:04:14]} 29. Rc4 {[%emt 0:04:08]} Nb5 {[%emt 0:02:16]} 30. Rc5 {[%emt 0:02:03]} Nd4 {[%emt 0:00:40]} 31. Rc7 {[%emt 0:00:56]} Rb2 {[%emt 0:00:34]} 32. Rb7 {[%emt 0:04:34]} Nc2 {[%emt 0:02:40]} 33. Nxc2 {[%emt 0:00:00]} Rxc2 $11 {[%emt 0:00:03] KR-KR} 34. b5 {[%emt 0:00:00]} Rb2 {[%emt 0:00:06]} 35. h4 {[%emt 0:00:00]} g6 {[%emt 0:00:14]} (35... Rb3 $14) 36. b6 {[%emt 0:00:00]} (36. Kf3 $16) 36... Kg7 {[%emt 0:00:05]} (36... e5 $14) 37. g4 {[%emt 0:01:09]} (37. Kf3 $16) 37... h6 {[%emt 0:02:40]} 38. Rb8 {[%emt 0:00:40] The position is equal.} Rb3 {[%emt 0:02:01]} 39. f3 {[%emt 0:00:24]} Rb2+ {[%emt 0:01:26]} 40. Kg3 {[%emt 0:00:10]} e5 {[%emt 0:00:33]} 41. g5 {[%emt 0:10:20]} hxg5 {[%emt 0:08:39]} 42. hxg5 {[%emt 0:00:01]} Kh7 {[%emt 0:02:02]} 43. Rf8 $1 {[%emt 0:00:07]} Kg7 {[%emt 0:00:31]} 44. Rb8 {[%emt 0:00:04]} Kh7 {[%emt 0:00:25]} 45. Kh3 {[%emt 0:00:51]} Kg7 {[%emt 0:03:26]} 46. Kg3 {[%emt 0:00:52] Weighted Error Value: White=0.10 (very precise) /Black=0.07 (flawless)} 1/2-1/2

[Event "Austrian Championship 2022"]
[Site "Vienna"]
[Date "2022.08.12"]
[Round "1.2"]
[White "Albadri Abd Al Sattar"]
[Black "Horvath, Dominik"]
[Result "0-1"]
[ECO "D30"]
[WhiteElo "2161"]
[BlackElo "2488"]
[Annotator "TA"]
[PlyCount "42"]
[EventDate "2022.08.12"]
[EventType "swiss"]
[EventCountry "AUT"]
[SourceTitle "playchess.com"]
[Source "ChessBase"]
[SourceQuality "1"]
[TimeControl "40/5400+30:1800+30"]

{[%evp 9,42,-6,0,-8,0,0,0,-10,0,0,0,0,-5,-1,-6,-16,-14,-7,-21,-30,-14,-20,-15,-74,-75,-84,-74,-147,-153,-152,-150,-331,-339,-554,-540]} 1. d4 {[%emt 0:00:10]} d5 {[%emt 0:00:04]} 2. c4 {[%emt 0:00:18]} e6 {[%emt 0:00:03]} 3. e3 {[%emt 0:00:37]} Nf6 {[%emt 0:00:04]} 4. Nf3 {[%emt 0:00:08]} a6 {[%emt 0:00:06]} 5. a4 {[%emt 0:00:22]} c5 {[%emt 0:01:36]} 6. Nc3 {[%emt 0:02:10] D30: Queen's Gambit Declined: Systems without Nc3.} cxd4 {[%emt 0:00:06]} 7. exd4 {[%emt 0:00:12]} Nc6 {[%emt 0:00:42] [#]} 8. cxd5 $146 {[%emt 0:04:58] The position is equal.} ({Predecessor:} 8. c5 b6 9. cxb6 Qxb6 10. Be2 Be7 11. O-O O-O 12. h3 Bd7 13. b3 Rfb8 14. Bf4 {1-0 (43) Dong,B (2227)-Llanos,G (2297) Chess.com INT 2020}) 8... Nxd5 {[%emt 0:00:52]} 9. Bc4 {[%emt 0:01:05]} Bb4 {[%emt 0:04:25]} 10. Qd3 {[%emt 0:02:07]} Be7 {[%emt 0:01:53]} 11. O-O {[%emt 0:02:07]} O-O {[%emt 0:00:02]} 12. h3 {[%emt 0:03:08]} Ncb4 {[%emt 0:00:53]} 13. Qe2 {[%emt 0:00:33]} b6 {[%emt 0:00:13]} 14. Ne5 {[%emt 0:01:29]} Bb7 {[%emt 0:00:08]} 15. Rd1 {[%emt 0:00:36]} Rc8 {[%emt 0:00:26]} 16. Be3 {[%emt 0:01:23]} (16. Nxd5 $11 Bxd5 17. b3) 16... Nxe3 $17 {[%emt 0:00:47]} 17. fxe3 {[%emt 0:00:14]} Bd6 {[%emt 0:00:07] A strong pair of Bishops.} 18. b3 {[%emt 0:12:44]} ({White should play} 18. Nxf7 Kxf7 19. Rf1+ Ke7 20. Bxe6 Bh2+ 21. Kxh2 Qd6+ 22. Kg1 Qxe6 23. e4) 18... Bxe5 {[%emt 0:00:17]} 19. dxe5 {[%emt 0:00:09]} Qg5 {[%emt 0:00:02]} 20. Rd6 $2 {[%emt 0:01:08] [#]} (20. Rac1 $17) 20... Qxe5 $19 {[%emt 0:00:10]} 21. Qd2 {[%emt 0:06:05]} (21. Rxb6 Qxc3 22. Qe1 Qxe1+ 23. Rxe1) 21... Nd5 {[%emt 0:00:06] Weighted Error Value: White=0.38/Black=0.01 (flawless)} 0-1

[Event "Austrian Championship 2022"]
[Site "Vienna"]
[Date "2022.08.12"]
[Round "1.2"]
[White "Kersten, Julian"]
[Black "Marakovits, Nico"]
[Result "0-1"]
[ECO "B45"]
[WhiteElo "1999"]
[BlackElo "2259"]
[Annotator "TA"]
[PlyCount "132"]
[EventDate "2022.08.12"]
[EventType "swiss"]
[EventCountry "AUT"]
[SourceTitle "playchess.com"]
[Source "ChessBase"]
[SourceQuality "1"]
[TimeControl "40/5400+30:1800+30"]

{[%evp 15,132,34,42,-2,0,0,0,0,0,0,13,13,19,-25,13,6,0,0,34,-66,-15,-14,10,2,0,-26,-13,-27,-33,-27,-22,-79,-70,-92,-27,-68,-72,-65,0,0,0,0,0,0,0,0,0,0,0,0,0,0,0,-25,-27,-29,-17,-12,0,0,0,0,0,-7,-4,-4,-7,-7,-7,-20,-8,-8,-16,-183,-140,-132,-83,-67,-70,-103,-106,-139,-138,-138,-120,-121,-123,-443,-432,-344,-209,-1003,-917,-828,-641,-1218,-777,-1251,-1228,-1237,-1205,-1131,-575,-1161,-584,-1131,-576,-2177,-576,-29976,-29975,-29975,-912,-1675,0,-29971,-11920,-29985,-29986]} 1. e4 {[%emt 0:01:12]} c5 {[%emt 0:00:05]} 2. Nf3 {[%emt 0:00:11]} Nc6 {[%emt 0:00:09]} 3. Nc3 {[%emt 0:00:16]} Nf6 {[%emt 0:00:49]} 4. Be2 {[%emt 0:05:08]} e6 {[%emt 0:01:33]} 5. d4 {[%emt 0:00:19]} cxd4 {[%emt 0:00:13]} 6. Nxd4 {[%emt 0:00:08]} Bb4 {[%emt 0:00:09]} 7. O-O {[%emt 0:00:19]} O-O {[%emt 0:02:58]} 8. Nxc6 {[%emt 0:06:07]} dxc6 {[%emt 0:01:19]} 9. Bd3 {[%emt 0:02:48] B45: Sicilian Four Knights.} e5 {[%emt 0:05:22] [#]} 10. Qf3 $146 {[%emt 0:05:09]} ({Predecessor:} 10. Qe2 Bg4 11. Qe3 Nh5 12. h3 Be6 13. Qf3 Qh4 14. Ne2 Bc5 15. Be3 Bxe3 16. Qxe3 Nf4 {0-1 (26) Muslija,I (2286)-Basagic,Z (2379) Bled 2003}) 10... h6 {[%emt 0:04:56]} 11. h3 {[%emt 0:08:15] The position is equal.} Qe7 {[%emt 0:05:20]} 12. Ne2 {[%emt 0:05:17]} Bd6 {[%emt 0:07:06]} 13. Ng3 {[%emt 0:03:33]} Kh7 {[%emt 0:09:51]} 14. Nh5 {[%emt 0:13:04]} Ng8 {[%emt 0:07:42]} 15. Qe2 {[%emt 0:05:33]} ({But not} 15. Qg3 $2 g6 16. Qf3 gxh5 $19) 15... g6 {[%emt 0:02:35]} (15... Bc5 {looks sharper.} 16. a4 Be6 17. Bd2 a5) 16. Ng3 {[%emt 0:02:32]} Qh4 {[%emt 0:05:38]} 17. Nh1 {[%emt 0:13:17]} (17. Bc4 $14) 17... Be6 {[%emt 0:05:12]} ({Black should try} 17... f5 $1 $15) 18. Bc4 $11 {[%emt 0:06:10]} Bxc4 {[%emt 0:04:39]} 19. Qxc4 {[%emt 0:00:03]} f5 {[%emt 0:01:27]} 20. Qe6 {[%emt 0:01:32]} Qf6 {[%emt 0:01:45] Active counter play!} 21. exf5 {[%emt 0:03:26]} gxf5 {[%emt 0:00:14]} 22. Qxf6 {[%emt 0:00:34]} Nxf6 {[%emt 0:01:12]} 23. Rd1 {[%emt 0:00:52]} (23. Ng3 $11 f4 24. Nf5) 23... Bc7 $17 {[%emt 0:01:14]} 24. Be3 {[%emt 0:01:39]} Rfd8 {[%emt 0:02:55]} ({Better is} 24... Rf7 $17 25. Re1 Rg8) 25. Bc5 {[%emt 0:00:52]} Rd5 {[%emt 0:03:31]} 26. Be7 {[%emt 0:02:21]} Ng8 {[%emt 0:04:12]} ({Black should play} 26... Kg6 $15) 27. Bh4 $11 {[%emt 0:01:03]} Bd8 {[%emt 0:00:30]} 28. Rxd5 {[%emt 0:00:38]} cxd5 {[%emt 0:00:07]} 29. Bxd8 {[%emt 0:00:18]} Rxd8 {[%emt 0:00:05][%mdl 4096] Endgame KRN-KRN} 30. Re1 {[%emt 0:00:29]} Re8 {[%emt 0:01:15]} 31. Ng3 {[%emt 0:00:24]} Kg6 {[%emt 0:00:06]} 32. f4 {[%emt 0:01:21]} e4 {[%emt 0:00:26]} 33. Ne2 {[%emt 0:00:33]} Ne7 {[%emt 0:01:10]} 34. Nd4 {[%emt 0:00:53]} Nc6 {[%emt 0:01:02]} 35. Rd1 {[%emt 0:00:49]} Kf6 {[%emt 0:02:07]} 36. Kf2 {[%emt 0:04:18]} Rc8 {[%emt 0:03:32] Hoping for ...Nxd4.} 37. c3 {[%emt 0:01:52]} Nxd4 {[%emt 0:03:55]} 38. Rxd4 {[%emt 0:00:36] KR-KR} Ke6 {[%emt 0:00:28]} 39. Ra4 {[%emt 0:03:36]} a6 {[%emt 0:00:14]} 40. Rb4 $1 {[%emt 0:00:15]} b5 {[%emt 0:00:27]} 41. a4 {[%emt 0:31:43]} Rb8 {[%emt 0:32:24]} 42. Ke3 {[%emt 0:00:00]} Kd6 {[%emt 0:00:00]} 43. axb5 {[%emt 0:00:00]} axb5 {[%emt 0:00:00] And now ...h5 would win.} 44. Rd4 $2 {[%emt 0:00:00]} (44. g4 $11 {and White is okay.}) 44... Rg8 {[%emt 0:00:00]} 45. Kf2 {[%emt 0:00:00]} e3+ {[%emt 0:00:00]} (45... Kc6 $142 46. Rd1 h5) 46. Kxe3 $17 {[%emt 0:00:00]} Rxg2 {[%emt 0:00:00]} 47. Rd2 {[%emt 0:00:00] White is now going downhill.} Rg3+ {[%emt 0:00:00]} 48. Kd4 {[%emt 0:00:00]} Rf3 {[%emt 0:00:00] Inhibits Rf2.} ({Much less strong is} 48... Rxh3 49. Rg2 $11) 49. Rg2 {[%emt 0:00:00]} Rxf4+ {[%emt 0:00:00]} 50. Ke3 {[%emt 0:00:00] [#]} Rh4 {[%emt 0:00:00]} 51. Rg6+ $2 {[%emt 0:00:00][%mdl 8192]} (51. Rg8 $17) 51... Ke5 $19 {[%emt 0:00:00]} 52. Rb6 {[%emt 0:00:00]} b4 {[%emt 0:00:00]} 53. Kf2 $2 {[%emt 0:00:00]} (53. cxb4 Rxh3+ 54. Kd2) 53... bxc3 {[%emt 0:00:00]} 54. bxc3 {[%emt 0:00:00]} Rxh3 {[%emt 0:00:00]} 55. Rg6 {[%emt 0:00:00]} h5 {[%emt 0:00:00][%cal Bh6h5,Bh5h4,Bh4h3][%mdl 32]} 56. Rh6 {[%emt 0:00:00]} Rh4 {[%emt 0:00:00]} 57. Kf3 {[%emt 0:00:00]} Rf4+ {[%emt 0:00:00]} 58. Ke3 {[%emt 0:00:00]} h4 {[%emt 0:00:00]} 59. Rh5 {[%emt 0:00:00]} Rc4 {[%emt 0:00:00]} 60. Kd3 {[%emt 0:00:00]} Rg4 {[%emt 0:00:00] ...Rg3+ is the strong threat.} 61. Ke3 {[%emt 0:00:00]} Rg3+ {[%emt 0:00:00]} (61... h3 $142 {( -> ...Rg3+)} 62. Rh8 Rg3+ 63. Kf2 Rxc3) 62. Ke2 {[%emt 0:00:00]} h3 {[%emt 0:00:00]} 63. Kd2 {[%emt 0:00:00]} Rg2+ {[%emt 0:00:00]} (63... Ke4 $142 64. Ke2 Rxc3 65. Kd2 Ra3 66. Kc2 d4 67. Rh7 f4 68. Rb7 h2 69. Rh7 d3+ 70. Kb2 d2 71. Rxh2 {[#]} d1=Q $1 72. Kxa3 f3 73. Rh4+ Kf5 74. Rh5+ Kg4 75. Rb5 f2 76. Rb4+ Kf5 77. Rb5+ Ke4 78. Rb4+ Kd5 79. Rb8 Qa1+ 80. Kb3 Qb1+ 81. Kc3 Qxb8 82. Kd2 f1=Q 83. Kc3 Qe1+ 84. Kd3 Qb3#) 64. Kd3 {[%emt 0:00:00]} Rg3+ {[%emt 0:00:00]} (64... Kf4 $19 65. Rxh3 Rg3+ 66. Kd4 Rxh3 67. Kxd5 Kg4 68. Ke5 f4 69. Ke4 f3 70. Ke3 Kg3 71. Kd4 f2 72. Ke5 f1=Q 73. Ke6 Qc4+ 74. Kf6 Rh7 75. Kf5 Rh6 76. Ke5 Re6+ 77. Kf5 Qg4#) 65. Kd2 {[%emt 0:00:00]} Ke4 {[%emt 0:00:00]} 66. Rh8 {[%emt 0:00:00]} Rg2+ {[%emt 0:00:00] Weighted Error Value: White=0.67/Black=0.44} 0-1

[Event "Austrian Championship 2022"]
[Site "Vienna"]
[Date "2022.08.12"]
[Round "1.3"]
[White "Shengelia, David"]
[Black "Leitner, Gerald"]
[Result "0-1"]
[ECO "D02"]
[WhiteElo "2462"]
[BlackElo "2145"]
[Annotator "TA"]
[PlyCount "82"]
[EventDate "2022.08.12"]
[EventType "swiss"]
[EventCountry "AUT"]
[SourceTitle "playchess.com"]
[Source "ChessBase"]
[SourceQuality "1"]
[TimeControl "40/5400+30:1800+30"]

{[%evp 9,82,10,22,0,5,-2,0,-23,-19,-25,-20,-61,-50,-63,-69,-64,-64,-87,-72,-66,-79,-76,-68,-66,-56,-110,-93,-106,-103,-104,-94,-111,-40,-39,-41,-90,-87,-101,-89,-114,-102,-154,-152,-151,-128,-190,-169,-266,-268,-341,-312,-301,-262,-283,-261,-537,-504,-502,-493,-1023,-923,-864,-552,-1370,-1333,-29992,-29993,-29993,-29994,-29994,-29995,-29998,-29997,-29998,-29999]} 1. d4 {[%emt 0:00:03]} Nf6 {[%emt 0:00:22]} 2. g3 {[%emt 0:00:06]} d5 {[%emt 0:00:07]} 3. Bg2 {[%emt 0:00:07]} c6 {[%emt 0:00:49]} 4. Nf3 {[%emt 0:00:18]} Bf5 {[%emt 0:00:10]} 5. Nh4 {[%emt 0:01:52]} Be6 {[%emt 0:02:44]} 6. Nc3 {[%emt 0:04:01] D02: 1 d4 d5 2 Nf3 sidelines, including 2...Nf6 3 g3 and 2...Nf6 3 Bf4.} g6 {[%emt 0:01:47] [#]} 7. Be3 $146 {[%emt 0:06:24]} ({Predecessor:} 7. e4 Nxe4 8. Nxe4 dxe4 9. Bxe4 Bg7 10. c3 Bd5 11. Bf3 O-O {½-½ (11) Lukov,V (2429)-Bratanov,Z (2420) Sunny Beach 2006}) 7... Bg7 {[%emt 0:01:50]} 8. Qd2 {[%emt 0:01:03] The position is equal.} h6 {[%emt 0:04:11][%cal Bh7h6,Bh6h5][%mdl 32]} 9. f4 {[%emt 0:00:15]} Nbd7 {[%emt 0:05:51]} 10. h3 {[%emt 0:00:44]} h5 {[%emt 0:14:58]} 11. Qd3 {[%emt 0:08:25]} Nb6 {[%emt 0:24:04]} 12. b3 {[%emt 0:00:30] Prevents Nc4.} Qd7 13. a4 {[%emt 0:10:03]} Bf5 {[%emt 0:01:00]} 14. Nxf5 {[%emt 0:04:29]} gxf5 {[%emt 0:00:02][%cal Bg6f5,Bf5e4][%mdl 32]} 15. Bc1 {[%emt 0:01:47]} Nc8 {[%emt 0:00:50]} 16. Ba3 {[%emt 0:00:32]} Ne4 {[%emt 0:00:48]} 17. Rd1 {[%emt 0:04:59]} (17. Qe3 $15) 17... Ncd6 {[%emt 0:01:29]} 18. Bxd6 {[%emt 0:03:54]} Qxd6 {[%emt 0:01:19]} 19. Nxe4 {[%emt 0:03:46]} fxe4 {[%emt 0:01:35]} 20. Qd2 {[%emt 0:00:25]} f5 {[%emt 0:00:32]} (20... Qg6 $17 21. Kf2 Rg8) 21. e3 $15 {[%emt 0:00:14]} Qg6 {[%emt 0:01:34]} 22. Qf2 {[%emt 0:01:24]} (22. Kf2 $1 $15) 22... Bf6 $17 {[%emt 0:00:35][%cal Oc6c5] Black continues to play with concentration.} 23. h4 {[%emt 0:02:41]} Rg8 {[%emt 0:00:20]} 24. Rh3 {[%emt 0:00:20]} Rc8 {[%emt 0:02:36][%cal Ba8c8,Bc8c7,Bc7c5][%mdl 32]} 25. b4 {[%emt 0:02:57] [#]} (25. Bf1 $142) 25... b6 $1 {[%emt 0:02:14] Black is more active.} 26. Bf1 {[%emt 0:42:11] [#]} c5 $1 {[%emt 0:04:19]} 27. Ba6 {[%emt 0:00:00]} (27. bxc5 $17 bxc5 28. c3) 27... Rc7 $19 {[%emt 0:00:53] And now ...Qg4 would win.} 28. bxc5 {[%emt 0:00:00]} (28. c3 $142) 28... bxc5 {[%emt 0:00:02]} 29. Qe2 {[%emt 0:00:00]} Kf7 {[%emt 0:05:48] aiming for ...cxd4.} 30. dxc5 {[%emt 0:00:00]} Rxc5 {[%emt 0:00:50]} 31. Kf1 {[%emt 0:00:00]} Rb8 {[%emt 0:06:25] Inhibits Rb1. ...Rb6 is the strong threat.} 32. c4 $2 {[%emt 0:00:00]} (32. Bb5) 32... dxc4 {[%emt 0:03:27]} 33. Bxc4+ {[%emt 0:00:00]} Kg7 {[%emt 0:00:08]} 34. Rd2 {[%emt 0:00:00] Against Rb2} (34. Ba2 $142 Bc3 35. Rc1) 34... Qg4 {[%emt 0:06:10]} 35. Kg2 {[%emt 0:00:00]} Qf3+ {[%emt 0:00:27]} 36. Kh2 {[%emt 0:00:00] [#]} Rxc4 {[%emt 0:00:18][%mdl 512]} 37. Qxc4 {[%emt 0:00:00]} (37. g4 Qxe2+) 37... Rb1 {[%emt 0:00:02][%csl Gb1][%cal Rf3h1] Black mates.} 38. Rg2 {[%emt 0:00:00]} Qd1 {[%emt 0:00:44][%csl Gb1][%cal Rd1h1]} 39. g4 {[%emt 0:00:00]} hxg4 {[%emt 0:02:37]} 40. Kg3 {[%emt 0:00:00]} Qe1+ {[%emt 0:01:07]} 41. Rf2 {[%emt 0:10:52]} Qxe3+ {[%emt 0:30:46] Weighted Error Value: White=0.62/Black=0.17 (very precise)} 0-1